fUST/lending_fUST_20240629
["ID","MTS","AMOUNT","RATE_DAILY","PERIOD"]
[330607576,1719616171244,-762.99526937,0.00021096,2]
[330607577,1719616171264,-225.44709256,0.00021096,2]
[330607578,1719616171284,-24900.0,0.00021161,2]
[330607579,1719616171303,-179.020932,0.00021511,2]
[330607580,1719616171323,-932.03,0.00021917,4]
[330607581,1719616171343,-614.28,0.00021917,4]
[330607582,1719616171361,-678.42,0.00021917,4]
[330607583,1719616171381,-2617.21,0.00021917,4]
[330607584,1719616171401,-1243.64,0.00021917,4]
[330607585,1719616171420,-1820.83,0.00021917,4]
[330607586,1719616171442,-3706.24,0.00021917,4]
[330607587,1719616171461,-500.0,0.00021917,4]
[330607588,1719616171482,-500.0,0.00021917,4]
[330607589,1719616171502,-500.0,0.00021917,4]
[330607590,1719616171523,-477.48200325,0.00021917,4]
[330607591,1719616171542,-500.0,0.00021917,4]
[330607592,1719616171562,-166.666666,0.00021918,2]
[330607593,1719616171582,-1135.98,0.0002219,4]
[330607594,1719616171601,-932.03,0.00022191,4]
[330607595,1719616171621,-614.28,0.00022191,4]
[330607596,1719616171642,-678.42,0.00022191,4]
[330607597,1719616171663,-2617.21,0.00022191,4]
[330607598,1719616171685,-1243.64,0.00022191,4]
[330607599,1719616171705,-1820.83,0.00022191,4]
[330607600,1719616171726,-3706.24,0.00022191,4]
[330607601,1719616171746,-500.0,0.00022191,4]
[330607602,1719616171766,-500.0,0.00022191,4]
[330607603,1719616171787,-878.80758321,0.00022344,2]
[330607604,1719616171805,-160.02818343,0.00022418,2]
[330607605,1719616171828,-166.666666,0.00022431,2]
[330607606,1719616171850,-1135.98,0.00022464,4]
[330607607,1719616171872,-500.0,0.00022464,4]
[330607608,1719616171890,-932.03,0.00022465,4]
[330607609,1719616171909,-614.28,0.00022465,4]
[330607610,1719616171929,-678.42,0.00022465,4]
[330607611,1719616171949,-2617.21,0.00022465,4]
[330607612,1719616171969,-1243.64,0.00022465,4]
[330607613,1719616171989,-1820.83,0.00022465,4]
[330607614,1719616172010,-3706.24,0.00022465,4]
[330607615,1719616172031,-500.0,0.00022465,4]
[330607616,1719616172055,-500.0,0.00022465,4]
[330607617,1719616172075,-1135.98,0.00022738,4]
[330607618,1719616172095,-286.73943227,0.00022738,2]
[330607619,1719616172116,-500.0,0.00022738,4]
[330607620,1719616172135,-932.03,0.00022739,4]
[330607621,1719616172155,-614.28,0.00022739,4]
[330607622,1719616172176,-678.42,0.00022739,4]
[330607623,1719616172196,-2617.21,0.00022739,4]
[330607624,1719616172216,-1243.64,0.00022739,4]
[330607625,1719616172241,-1058.34665982,0.00022739,4]
[330607663,1719616232480,-500.0,0.00021917,4]
[330607665,1719616232490,-993.98,0.0002219,4]
[330607667,1719616232500,-232.75,0.00022191,4]
[330607670,1719616232509,-878.80758321,0.00022288,2]
[330607672,1719616232518,-993.98,0.00022464,4]
[330607674,1719616232528,-627.9,0.00022464,4]
[330607676,1719616232537,-993.98,0.00022738,4]
[330607677,1719616232547,-762.48334018,0.00022739,4]
[330607679,1719616232556,-3706.24,0.00022739,4]
[330607682,1719616232566,-500.0,0.00022739,4]
[330607683,1719616232576,-430.24628188,0.00022739,4]
[330607686,1719616232586,-166.666666,0.00022944,2]
[330607688,1719616232596,-500.0,0.00023012,4]
[330607690,1719616232607,-993.98,0.00023012,4]
[330607692,1719616232616,-932.03,0.00023013,4]
[330607694,1719616232626,-614.28,0.00023013,4]
[330607696,1719616232636,-678.42,0.00023013,4]
[330607698,1719616232645,-2617.21,0.00023013,4]
[330607700,1719616232654,-1243.64,0.00023013,4]
[330607702,1719616232663,-1820.83,0.00023013,4]
[330607704,1719616232672,-3706.24,0.00023013,4]
[330607706,1719616232681,-500.0,0.00023013,4]
[330607707,1719616232690,-3005.36205853,0.00023277,7]
[330607709,1719616232700,-11253.1172492,0.00023277,2]
[330607713,1719616232714,-8560.83621286,0.00023277,2]
[330607716,1719616232727,-9940.70350962,0.00023277,2]
[330607720,1719616232738,-21930.95702538,0.00023277,2]
[330607762,1719616238514,-309.58206422,0.0002243,2]
[330607763,1719616238524,-14746.5435505,0.00023277,2]
[330607856,1719616246874,-261.81,0.00023277,2]
[330607857,1719616246887,-282.5,0.00023277,2]
[330607858,1719616246899,-4365.01011654,0.00023277,2]
[330607877,1719616477264,162.242841,0.00014904,2]
[330607891,1719616895295,4101.83177878,0.00014999,2]
[330607895,1719617113186,162.242841,0.00014904,2]
[330607897,1719617131741,848.98499647,0.00015,2]
[330607898,1719617152112,-1555.67353503,0.00016255,2]
[330607901,1719617351126,-2940.13,0.00016255,2]
[330607902,1719617361102,-1942.29143432,0.00016255,2]
[330607903,1719617361122,-826.10060043,0.00018798,2]
[330607904,1719617361143,-207.31154796,0.00019069,2]
[330607905,1719617362999,154.96125969,0.00019165,2]
[330607906,1719617382896,174.618365,0.00019165,2]
[330607907,1719617382918,140.90183716,0.00019165,2]
[330607908,1719617426405,128.08787826,0.00019165,2]
[330607946,1719617441108,-114.75987398,0.00019165,2]
[330607947,1719617441120,-154.94576898,0.00019165,2]
[330607948,1719617441131,-748.86105906,0.00020363,2]
[330607999,1719617444598,-4827.69445361,0.00020363,2]
[330608000,1719617444612,-5973.42461852,0.00020363,2]
[330608001,1719617444625,-392.1959995,0.00020363,2]
[330608021,1719617446934,-918.64713147,0.00020363,2]
[330608022,1719617446946,-729.45195571,0.00020363,2]
[330608031,1719617447160,-1721.2999999,0.00020363,2]
[330608035,1719617637035,161.414578,0.00014904,2]
[330608049,1719617895523,5000.0,0.00026,120]
[330608050,1719617897795,5000.0,0.00026,120]
[330608053,1719617988431,154.83742071,0.00014999,2]
[330608054,1719618264234,161.414578,0.00014904,2]
[330608056,1719618554178,-1285.13437956,0.00018899,2]
[330608057,1719618554198,-154.80649189,0.0002,2]
[330608058,1719618554218,-5283.67863355,0.00020176,2]
[330608059,1719618554237,-181.423834,0.00020418,2]
[330608060,1719618554258,-130.04938331,0.00020771,2]
[330608061,1719618570102,-2706.08758719,0.00020771,2]
[330608062,1719618570121,-179.020932,0.00020822,2]
[330608063,1719618570140,-318.11753712,0.00021096,2]
[330608064,1719618590081,154.80649189,0.0002,2]
[330608091,1719618632009,-173.355713,0.00020934,2]
[330608092,1719618632019,-750.0,0.00021096,2]
[330608093,1719618632032,-762.99526937,0.00021096,2]
[330608094,1719618632042,-5278.77481491,0.00021423,2]
[330608095,1719618632052,-620.00038707,0.0002184,2]
[330608096,1719618632060,-3139.04822508,0.00021916,2]
[330608097,1719618632071,-500.0,0.00021917,4]
[330608098,1719618632080,-567.51,0.00021917,4]
[330608099,1719618632089,-2459.2,0.00021917,4]
[330608100,1719618632099,-595.18,0.00021917,4]
[330608101,1719618632111,-254.28,0.00021917,4]
[330608102,1719618632121,-500.0,0.00021917,4]
[330608103,1719618632131,-500.0,0.00021917,4]
[330608104,1719618632140,-500.0,0.00021917,4]
[330608105,1719618632148,-166.666666,0.00021918,2]
[330608106,1719618632157,-160.02818343,0.00022016,2]
[330608107,1719618632167,-213.35811475,0.00022091,2]
[330608108,1719618632177,-216.33247983,0.0002219,4]
[330608109,1719618632187,-500.0,0.0002219,4]
[330608110,1719618632196,-596.91,0.0002219,4]
[330608111,1719618632207,-500.0,0.0002219,4]
[330608112,1719618632216,-500.0,0.0002219,4]
[330608113,1719618632224,-567.51,0.00022191,4]
[330608114,1719618632233,-2459.2,0.00022191,4]
[330608115,1719618632243,-595.18,0.00022191,4]
[330608116,1719618632252,-500.0,0.00022191,4]
[330608117,1719618632261,-373.59123074,0.00022191,4]
[330608304,1719618798824,161.414578,0.00014904,2]
[330608306,1719619116195,1285.13437956,0.00014999,2]
[330608311,1719619282209,483.31360815,0.00014999,2]
[330608312,1719619365845,161.414578,0.00014904,2]
[330608313,1719619627148,-154.80649189,0.0002,2]
[330608314,1719619627170,-70.64060067,0.000202,2]
[330608315,1719619627940,916.22837838,0.00014999,2]
[330608322,1719619754123,-154.80649189,0.0002,2]
[330608323,1719619754150,-1908.60805333,0.000202,2]
[330608324,1719619754188,-1000.0,0.000207,2]
[330608325,1719619754214,-359.51974078,0.00021096,2]
[330608327,1719619828106,179.020932,0.00020201,2]
[330608454,1719619846283,-390.48025922,0.00021096,2]
[330608456,1719619846293,-181.423834,0.00021154,2]
[330608459,1719619846302,-131.05439527,0.000212,2]
[330608510,1719619888689,90.149068,0.00020201,2]
[330608511,1719619888711,672.84620137,0.00020201,2]
[330608512,1719619909987,2482.50621516,0.00020201,2]
[330608515,1719619963105,161.414578,0.00014904,2]
[330608516,1719620180475,517.74740795,0.00014999,2]
[330608517,1719620528629,1626.57616571,0.00014999,2]
[330608518,1719620544026,154.94537953,0.00014999,2]
[330608519,1719620545457,161.414578,0.00014904,2]
[330608520,1719620616424,206.16607887,0.00014999,2]
[330608521,1719620659132,1084.38411047,0.00014999,2]
[330608522,1719620803622,903.65342539,0.00014999,2]
[330608523,1719620831129,-154.80649189,0.0001625,2]
[330608524,1719620947126,-2498.19350811,0.0001625,2]
[330608525,1719620947146,-903.65342539,0.00019164,2]
[330608526,1719620947167,-2940.13,0.00019697,2]
[330608527,1719620950086,-278.47522852,0.0002,2]
[330608528,1719620950109,-1688.71242111,0.00020201,2]
[330608529,1719620950128,-225.44709256,0.00020201,2]
[330608530,1719620950147,-762.99526937,0.00020201,2]
[330608531,1719620950167,-412.84835344,0.00021095,2]
[330608532,1719620952965,169.05867531,0.0002,2]
[330608533,1719620961123,-77.0514209,0.0002,2]
[330608534,1719620961147,-173.355713,0.00020149,2]
[330608535,1719620963623,239.5928661,0.00018899,2]
[330608536,1719620963650,237.55415293,0.00018899,2]
[330608537,1719620963675,159.11,0.00018899,2]
[330608870,1719621061634,470.80343463,0.00014999,2]
[330608876,1719621253333,2135.09451617,0.00014999,2]
[330608877,1719621257439,161.414578,0.00014904,2]
[330608878,1719621386271,777.30358977,0.00014999,2]
[330608879,1719621460161,470.80343463,0.00014999,2]
[330608880,1719621498045,191.27910328,0.00014999,2]
[330608881,1719621500043,328.39688033,0.00015,2]
[330608882,1719621500522,333.34473273,0.00015,2]
[330608883,1719621624167,470.80343463,0.00014999,2]
[330608884,1719621639162,470.80343463,0.00014999,2]
[330608885,1719621695068,525.65295456,0.0001818,30]
[330608886,1719621716136,1205.54859605,0.00014999,2]
[330608887,1719621725599,276.12022579,0.00014999,2]
[330608888,1719621796697,470.80343463,0.00014999,2]
[330608889,1719621811604,329.48964541,0.00014999,2]
[330608890,1719621846031,161.414578,0.00014904,2]
[330608891,1719621947689,470.80343463,0.00014999,2]
[330608892,1719621994021,527.60567193,0.00018065,30]
[330608893,1719622031134,-2940.13,0.00016255,2]
[330608894,1719622036606,504.18873762,0.00025999,120]
[330608895,1719622041096,-268.98971542,0.00016255,2]
[330608896,1719622117198,470.80343463,0.00014999,2]
[330608897,1719622147101,-10959.3853992,0.00016255,2]
[330608898,1719622147122,-315.52020216,0.00016806,2]
[330608899,1719622147141,-224.0,0.00017445,2]
[330608900,1719622147161,-200.0,0.00018636,2]
[330608901,1719622147180,-200.0,0.00019084,2]
[330608902,1719622147210,-1285.13437956,0.00019164,2]
[330608903,1719622147231,-181.423834,0.00019178,2]
[330608904,1719622147261,134.53618508,0.00014999,2]
[330608905,1719622147290,336.26724955,0.00014999,2]
[330608906,1719622153252,-225.44709256,0.0002,2]
[330608907,1719622153274,-4171.21863627,0.0002,2]
[330608908,1719622153295,-293.04302917,0.0002,2]
[330608909,1719622153316,-373.37670076,0.00020596,2]
[330608910,1719622153337,-620.00001935,0.00020696,2]
[330608911,1719622153358,-200.0,0.0002072,2]
[330608912,1719622153378,-11396.7066281,0.00020954,7]
[330608913,1719622153399,-5274.08650964,0.00020954,2]
[330608914,1719622153419,-151.0,0.00021084,2]
[330608915,1719622153440,-206.958691,0.00021084,2]
[330608916,1719622153461,-112.7372089,0.00021095,2]
[330608917,1719622153482,-720.535714,0.00021096,2]
[330608918,1719622153504,-164.633631,0.00021096,2]
[330608919,1719622153544,159.995268,0.00019923,2]
[330608920,1719622154574,181.95484058,0.00021013,2]
[330608922,1719622170280,154.79103211,0.0002,2]
[330608971,1719622238742,-151.0,0.00020954,2]
[330608972,1719622238752,-151.0,0.00020954,2]
[330608973,1719622238762,-339.71806595,0.00021013,2]
[330608974,1719622238774,-793.88706823,0.00021013,2]
[330609001,1719622240917,-3968.11865879,0.00021013,2]
[330609002,1719622240927,-151.0,0.00021362,2]
[330609003,1719622240937,-151.0,0.00021362,2]
[330609004,1719622240947,-151.0,0.00021362,2]
[330609005,1719622240956,-155.69982,0.00021362,2]
[330609006,1719622240966,-210.779414,0.00021362,2]
[330609007,1719622240976,-151.0,0.00021362,2]
[330609008,1719622240986,-151.0,0.00021362,2]
[330609009,1719622240996,-151.0,0.00021362,2]
[330609010,1719622241007,-151.0,0.00021362,2]
[330609011,1719622241016,-151.0,0.00021362,2]
[330609012,1719622241025,-151.0,0.00021362,2]
[330609013,1719622241035,-21606.33354504,0.0002146,2]
[330609014,1719622241045,-151.0,0.00021462,2]
[330609015,1719622241054,-151.0,0.00021462,2]
[330609016,1719622241064,-151.0,0.00021462,2]
[330609017,1719622241073,-163.9479206,0.00021467,2]
[330609018,1719622241082,-169.05867531,0.00021556,2]
[330609019,1719622241092,-5698.35331405,0.00021557,7]
[330609020,1719622241101,-21.36642589,0.00021557,2]
[330609043,1719622243916,-129.63357411,0.00021557,2]
[330609044,1719622243929,-151.0,0.00021557,2]
[330609045,1719622243938,-3854.46094206,0.00021557,2]
[330609046,1719622243949,-1000.0,0.00021557,2]
[330609049,1719622245526,11.87563389,0.0002,2]
[330609050,1719622245549,213.57145867,0.0002,2]
[330609114,1719622253153,34.23134133,0.0002,2]
[330609117,1719622369932,160.290241,0.00014904,2]
[330609123,1719622957951,160.290241,0.00014904,2]
[330609125,1719622994546,1012.65486333,0.00014999,2]
[330609126,1719623065470,4026.74481855,0.00014999,2]
[330609129,1719623139144,-269.56023019,0.00017198,2]
[330609131,1719623224370,182.46691096,0.00014999,2]
[330609132,1719623233102,-276.15513312,0.00016834,2]
[330609133,1719623233123,-2446.76522931,0.00017198,2]
[330609134,1719623233144,-342.36430927,0.00017795,2]
[330609135,1719623241145,-225.44709256,0.00017795,2]
[330609136,1719623244111,-432.18859817,0.00017795,2]
[330609137,1719623244132,-1000.0,0.00017823,2]
[330609138,1719623244152,-1000.0,0.00017833,2]
[330609139,1719623244172,-1000.0,0.0001785,2]
[330609140,1719623244192,-1000.0,0.0001786,2]
[330609141,1719623244212,-1000.0,0.00017867,2]
[330609142,1719623244233,-1000.0,0.0001787,2]
[330609143,1719623244253,-602.90412414,0.00017875,2]
[330609144,1719623247135,-397.09587586,0.00017875,2]
[330609145,1719623247155,-345.20894052,0.00017881,2]
[330609146,1719623247176,-1000.0,0.00017894,2]
[330609147,1719623247195,-1000.0,0.00017896,2]
[330609148,1719623247215,-1000.0,0.00017908,2]
[330609149,1719623247245,-1000.0,0.00017928,2]
[330609150,1719623247270,-1000.0,0.00017939,2]
[330609151,1719623247290,-1000.0,0.00017983,2]
[330609152,1719623247310,-1000.0,0.00017988,2]
[330609153,1719623247329,-993.01546506,0.00017993,2]
[330609154,1719623247349,-1000.0,0.00018009,2]
[330609155,1719623247369,-1000.0,0.0001801,2]
[330609156,1719623247388,-1000.0,0.00018013,2]
[330609157,1719623247408,-1000.0,0.00018026,2]
[330609158,1719623247427,-1000.0,0.00018032,2]
[330609159,1719623247447,-1000.0,0.0001805,2]
[330609160,1719623247468,-1000.0,0.00018052,2]
[330609161,1719623247487,-154.83742071,0.00018798,2]
[330609162,1719623247507,-163.7248424,0.00019884,2]
[330609163,1719623247527,-490.05691973,0.000199,2]
[330609164,1719623247547,-4136.98729494,0.0002,2]
[330609165,1719623247568,-455.45398999,0.0002,2]
[330609166,1719623247587,-225.44709256,0.0002,2]
[330609167,1719623247607,-293.04302917,0.0002,2]
[330609168,1719623247628,-1868.945605,0.0002,2]
[330609169,1719623247650,-154.79103211,0.0002,2]
[330609170,1719623247673,-1000.0,0.000205,2]
[330609171,1719623247694,-300.0,0.00020827,2]
[330609172,1719623247713,-300.0,0.00020896,2]
[330609173,1719623247733,-300.0,0.00020922,2]
[330609174,1719623247753,-1000.0,0.00021,2]
[330609175,1719623247774,-300.0,0.00021015,2]
[330609176,1719623247794,-525.58556234,0.00021095,2]
[330609177,1719623247814,-733.899017,0.00021096,2]
[330609178,1719623247833,-1000.0,0.000215,2]
[330609179,1719623247857,-40000.0,0.00021567,2]
[330609180,1719623247887,-200.0,0.00021599,2]
[330609181,1719623247906,-620.00000097,0.00021731,2]
[330609182,1719623247925,-163.9479206,0.00021817,2]
[330609183,1719623247945,-18573.07433031,0.00021917,7]
[330609188,1719623383631,160.02818343,0.00020707,2]
[330609206,1719623432028,-16.16013857,0.00020707,2]
[330609208,1719623432037,-179.759878,0.00021096,2]
[330609209,1719623432047,-500.0,0.00021917,4]
[330609210,1719623432056,-234.59707315,0.00021917,4]
[330609211,1719623432065,-500.0,0.00021917,4]
[330609212,1719623432075,-500.0,0.00021917,4]
[330609213,1719623432084,-500.0,0.00021917,4]
[330609214,1719623432093,-500.0,0.00021917,4]
[330609215,1719623432102,-500.0,0.00021917,4]
[330609216,1719623432111,-500.0,0.00021917,4]
[330609217,1719623432121,-500.0,0.00021917,4]
[330609218,1719623432130,-500.0,0.00021917,4]
[330609219,1719623432140,-500.0,0.00021917,4]
[330609220,1719623432150,-500.0,0.00021917,4]
[330609221,1719623432160,-160.07713796,0.00021917,4]
[330609239,1719623438074,-225.44709256,0.00020707,2]
[330609240,1719623438084,-135.12599044,0.00021917,4]
[330609241,1719623438096,-204.7968716,0.00021917,4]
[330609242,1719623438106,-606.17,0.00021917,4]
[330609243,1719623438116,-500.0,0.00021917,4]
[330609244,1719623438126,-330.95060996,0.00021917,4]
[330609245,1719623438135,-500.0,0.00021917,4]
[330609246,1719623438145,-500.0,0.00021917,4]
[330609247,1719623438154,-500.0,0.00021917,4]
[330609248,1719623438164,-500.0,0.00021917,4]
[330609249,1719623438173,-500.0,0.00021917,4]
[330609250,1719623438184,-647.17,0.00021917,4]
[330609251,1719623438194,-500.0,0.00021917,4]
[330609252,1719623438203,-500.0,0.00021917,4]
[330609253,1719623438214,-500.0,0.00021917,4]
[330609254,1719623438223,-506.1980373,0.00021917,4]
[330609255,1719623438233,-500.0,0.00021917,4]
[330609256,1719623438242,-549.74919985,0.00021917,4]
[330609257,1719623438252,-500.0,0.00021917,4]
[330609258,1719623438261,-500.0,0.00021917,4]
[330609259,1719623438271,-252.86,0.00021917,4]
[330609260,1719623438281,-221.39,0.00021917,4]
[330609261,1719623438290,-500.0,0.00021917,4]
[330609262,1719623438299,-283.66752017,0.00021917,4]
[330609263,1719623438309,-500.0,0.00021917,4]
[330609264,1719623438319,-620.5748424,0.00021917,4]
[330609265,1719623438329,-508.89038591,0.00021917,4]
[330609266,1719623438338,-520.22,0.00021917,4]
[330609267,1719623438348,-598.89,0.00021917,4]
[330609268,1719623438359,-504.58832158,0.00021917,4]
[330609269,1719623438370,-500.0,0.00021917,4]
[330609270,1719623438381,-500.0,0.00021917,4]
[330609271,1719623438392,-555.14,0.00021917,4]
[330609272,1719623438402,-500.0,0.00021917,4]
[330609273,1719623438411,-502.01806864,0.00021917,4]
[330609274,1719623438422,-2254.27,0.00021917,4]
[330609275,1719623438432,-500.0,0.00021917,4]
[330609276,1719623438442,-269.17,0.00021917,4]
[330609277,1719623438452,-500.0,0.00021917,4]
[330609278,1719623438461,-500.0,0.00021917,4]
[330609279,1719623438471,-872.48,0.00021917,4]
[330609280,1719623438481,-1332.8,0.00021917,4]
[330609281,1719623438491,-545.58,0.00021917,4]
[330609282,1719623438501,-500.0,0.00021917,4]
[330609283,1719623438511,-500.0,0.00021917,4]
[330609284,1719623438521,-500.0,0.00021917,4]
[330609285,1719623438531,-500.0,0.00021917,4]
[330609286,1719623438540,-500.0,0.00021917,4]
[330609287,1719623438550,-506.47,0.00021917,4]
[330609288,1719623438559,-500.0,0.00021917,4]
[330609289,1719623438569,-500.0,0.00021917,4]
[330609290,1719623438580,-500.0,0.00021917,4]
[330609291,1719623438590,-154.80649189,0.00021917,2]
[330609292,1719623438600,-734.27623595,0.00021917,2]
[330609293,1719623438953,-3436.94240032,0.00021917,2]
[330609294,1719623438962,-500.0,0.00021917,4]
[330609295,1719623438972,-500.0,0.00021917,4]
[330609296,1719623438982,-4171.21863627,0.00021917,2]
[330609297,1719623438995,-1159.82,0.00021917,4]
[330609298,1719623439005,-500.0,0.00021917,4]
[330609299,1719623439015,-1680.49,0.00021917,4]
[330609300,1719623439026,-5440.07,0.00021917,4]
[330609301,1719623439035,-606.56,0.00021917,4]
[330609302,1719623439046,-500.0,0.00021917,4]
[330609303,1719623439056,-3627.97,0.00021917,4]
[330609304,1719623439066,-500.0,0.00021917,4]
[330609305,1719623439076,-500.0,0.00021917,4]
[330609306,1719623439087,-500.0,0.00021917,4]
[330609307,1719623439097,-563.559661,0.00021918,2]
[330609308,1719623439107,-563.559661,0.00021918,2]
[330609309,1719623439118,-563.559661,0.00021918,2]
[330609310,1719623439128,-563.559661,0.00021918,2]
[330609311,1719623439139,-563.559661,0.00021918,2]
[330609312,1719623439148,-563.559661,0.00021918,2]
[330609313,1719623439159,-563.559661,0.00021918,2]
[330609314,1719623439169,-563.559661,0.00021918,2]
[330609315,1719623439179,-563.559661,0.00021918,2]
[330609316,1719623439189,-563.559661,0.00021918,2]
[330609317,1719623439199,-563.559661,0.00021918,2]
[330609318,1719623439209,-249.4209279,0.00021918,2]
[330609319,1719623439223,-314.1387331,0.00021918,2]
[330609320,1719623439233,-166.666666,0.00021918,2]
[330609321,1719623439243,-160.02818343,0.00022016,2]
[330609322,1719623439253,-466.9532614,0.00022073,4]
[330609323,1719623439262,-8874.34374721,0.00022181,7]
[330609360,1719623440333,-357.6496143,0.00021817,2]
[330609362,1719623440345,-71.15019042,0.00021817,2]
[330609364,1719623440354,-3450.23004485,0.00022181,7]
[330609366,1719623440364,-26619.98906351,0.00022181,2]
[330609585,1719623482642,159.165905,0.00014904,2]
[330609607,1719624274837,159.165905,0.00014904,2]
[330609611,1719624353131,-276.23399711,0.00016972,2]
[330609612,1719624353151,-826.10060043,0.00018798,2]
[330609613,1719624353170,-154.83742071,0.00018798,2]
[330609614,1719624353189,-318.88334763,0.00018798,2]
[330609615,1719624353209,-154.83742071,0.00018798,2]
[330609616,1719624353229,-159.995268,0.00019954,2]
[330609617,1719624353246,-293.04302917,0.0002,2]
[330609618,1719624353264,-154.79103211,0.0002,2]
[330609619,1719624353283,-534.80176693,0.00020026,2]
[330609625,1719624435165,-300.0,0.00020025,2]
[330609626,1719624435186,-4171.21863627,0.00020026,2]
[330609627,1719624435206,-16114.83250927,0.00020026,2]
[330609628,1719624435226,-743.11503392,0.00020081,2]
[330609629,1719624435249,-2740.0,0.00021,4]
[330609630,1719624435269,-525.23281829,0.00021095,2]
[330609631,1719624435291,-750.0,0.00021096,2]
[330609632,1719624435310,-620.00000005,0.00021676,2]
[330609633,1719624435331,-518.13309737,0.00021817,2]
[330609634,1719624435353,-1277.26,0.00021917,4]
[330609635,1719624435376,-580.91,0.00021917,4]
[330609636,1719624435398,-500.0,0.00021917,4]
[330609637,1719624435418,-449.13,0.00021917,4]
[330609638,1719624435441,-500.0,0.00021917,4]
[330609639,1719624435461,-259.26876926,0.00021917,4]
[330609640,1719624435481,-500.0,0.00021917,4]
[330609641,1719624435504,-836.13,0.00021917,4]
[330609642,1719624435526,-618.52,0.00021917,4]
[330609643,1719624435546,-1610.47,0.00021917,4]
[330609644,1719624435566,-500.0,0.00021917,4]
[330609645,1719624435586,-500.0,0.00021917,4]
[330609646,1719624435607,-500.0,0.00021917,4]
[330609647,1719624435627,-3476.8,0.00021917,4]
[330609648,1719624435647,-500.0,0.00021917,4]
[330609649,1719624435668,-2160.34,0.00021917,4]
[330609650,1719624435687,-500.0,0.00021917,4]
[330609651,1719624435708,-1111.5,0.00021917,4]
[330609652,1719624435727,-166.666666,0.00021918,2]
[330609653,1719624435750,-156.2262443,0.00021959,2]
[330609654,1719624435769,-160.02818343,0.00022,2]
[330609655,1719624435788,-762.99526937,0.00022181,2]
[330609656,1719624435807,-225.44709256,0.00022181,2]
[330609657,1719624435825,-522.85,0.0002219,4]
[330609658,1719624435846,-4996.18,0.0002219,4]
[330609659,1719624435868,-1277.26,0.00022191,4]
[330609660,1719624435888,-580.91,0.00022191,4]
[330609661,1719624435907,-500.0,0.00022191,4]
[330609662,1719624435927,-500.0,0.00022191,4]
[330609663,1719624435948,-500.0,0.00022191,4]
[330609664,1719624435967,-836.13,0.00022191,4]
[330609665,1719624435988,-1610.47,0.00022191,4]
[330609666,1719624436009,-500.0,0.00022191,4]
[330609667,1719624436031,-500.0,0.00022191,4]
[330609668,1719624436053,-500.0,0.00022191,4]
[330609669,1719624436073,-3476.8,0.00022191,4]
[330609670,1719624436093,-2160.34,0.00022191,4]
[330609671,1719624436112,-500.0,0.00022191,4]
[330609672,1719624436132,-1111.5,0.00022191,4]
[330609673,1719624436154,-878.80758321,0.00022387,2]
[330609674,1719624436175,-166.666666,0.00022431,2]
[330609675,1719624436196,-522.85,0.00022464,4]
[330609676,1719624436216,-1277.26,0.00022465,4]
[330609677,1719624436238,-580.91,0.00022465,4]
[330609678,1719624436262,-500.0,0.00022465,4]
[330609679,1719624436286,-151.0,0.00022465,7]
[330609680,1719624436306,-151.0,0.00022465,7]
[330609681,1719624436327,-335.01988389,0.00022465,4]
[330609682,1719624436348,-500.0,0.00022465,4]
[330609683,1719624436368,-151.0,0.00022465,7]
[330609684,1719624436389,-836.13,0.00022465,4]
[330609685,1719624436409,-225.423864,0.00022465,7]
[330609686,1719624436430,-225.423864,0.00022465,7]